fUSD/lending_fUSD_20240516
["ID","MTS","AMOUNT","RATE_DAILY","PERIOD"]
[327148783,1715853037258,-500.0,0.00010958,2]
[327148784,1715853037267,-500.0,0.00010958,2]
[327148785,1715853037276,-500.0,0.00010958,2]
[327148786,1715853037285,-500.0,0.00010958,2]
[327148787,1715853037295,-500.0,0.00010958,2]
[327148788,1715853037305,-536.31,0.00010958,2]
[327148789,1715853037313,-500.0,0.00010958,2]
[327148790,1715853037323,-500.0,0.00010958,2]
[327148791,1715853037332,-500.0,0.00010958,2]
[327148792,1715853037343,-500.0,0.00010958,2]
[327148793,1715853037354,-500.0,0.00010958,2]
[327148794,1715853037364,-500.0,0.00010958,2]
[327148795,1715853037373,-500.0,0.00010958,2]
[327148796,1715853037385,-500.0,0.00010958,2]
[327148797,1715853037394,-500.0,0.00010958,2]
[327148798,1715853037403,-500.0,0.00010958,2]
[327148799,1715853037413,-500.0,0.00010958,2]
[327148800,1715853037423,-311.07412718,0.00010958,2]
[327148801,1715853037434,-500.0,0.00010958,2]
[327148802,1715853037443,-500.0,0.00010958,2]
[327148803,1715853037453,-500.0,0.00010958,2]
[327148804,1715853037463,-500.0,0.00010958,2]
[327148808,1715853037473,-500.0,0.00010958,2]
[327148812,1715853037482,-500.0,0.00010958,2]
[327148815,1715853037492,-500.0,0.00010958,2]
[327148817,1715853037501,-500.0,0.00010958,2]
[327148819,1715853037512,-500.0,0.00010958,2]
[327148822,1715853037699,-500.0,0.00010958,2]
[327148823,1715853037710,-500.0,0.00010958,2]
[327148824,1715853037719,-500.0,0.00010958,2]
[327148825,1715853037729,-500.0,0.00010958,2]
[327148826,1715853037739,-500.0,0.00010958,2]
[327148827,1715853037749,-1640.91,0.00010958,2]
[327148828,1715853037759,-500.0,0.00010958,2]
[327148829,1715853037770,-500.0,0.00010958,2]
[327148830,1715853037781,-500.0,0.00010958,2]
[327148831,1715853037793,-520.29933325,0.00010958,2]
[327148832,1715853037804,-500.0,0.00010958,2]
[327148833,1715853037816,-500.0,0.00010958,2]
[327148834,1715853037827,-500.0,0.00010958,2]
[327148835,1715853037838,-500.0,0.00010958,2]
[327148836,1715853037849,-500.0,0.00010958,2]
[327148837,1715853037860,-500.0,0.00010958,2]
[327148838,1715853037872,-500.0,0.00010958,2]
[327148839,1715853037885,-500.0,0.00010958,2]
[327148840,1715853037897,-500.0,0.00010958,2]
[327148841,1715853037909,-500.0,0.00010958,2]
[327148842,1715853037921,-500.0,0.00010958,2]
[327148843,1715853037936,-500.0,0.00010958,2]
[327148844,1715853037948,-549.83,0.00010958,2]
[327148845,1715853037959,-500.0,0.00010958,2]
[327148846,1715853037970,-500.0,0.00010958,2]
[327148847,1715853037982,-500.0,0.00010958,2]
[327148848,1715853037992,-500.0,0.00010958,2]
[327148849,1715853038004,-500.0,0.00010958,2]
[327148850,1715853038016,-521.90403634,0.00010958,2]
[327148851,1715853038027,-500.0,0.00010958,2]
[327148852,1715853038039,-507.24,0.00010958,2]
[327148853,1715853038050,-500.0,0.00010958,2]
[327148854,1715853038062,-500.0,0.00010958,2]
[327148855,1715853038074,-500.0,0.00010958,2]
[327148856,1715853038085,-500.0,0.00010958,2]
[327148858,1715853038096,-500.0,0.00010958,2]
[327148859,1715853038107,-500.0,0.00010958,2]
[327148861,1715853038119,-500.0,0.00010958,2]
[327148863,1715853038131,-500.0,0.00010958,2]
[327148865,1715853038152,-500.0,0.00010958,2]
[327148866,1715853038165,-500.0,0.00010958,2]
[327148868,1715853038176,-564.79970613,0.00010958,2]
[327148869,1715853038186,-500.0,0.00010958,2]
[327148871,1715853038197,-500.0,0.00010958,2]
[327148872,1715853038207,-500.0,0.00010958,2]
[327148874,1715853038219,-500.0,0.00010958,2]
[327148876,1715853038230,-500.0,0.00010958,2]
[327148878,1715853038241,-500.0,0.00010958,2]
[327148879,1715853038256,-500.0,0.00010958,2]
[327148881,1715853038268,-500.0,0.00010958,2]
[327148883,1715853038279,-556.15,0.00010958,2]
[327148885,1715853038290,-500.0,0.00010958,2]
[327148886,1715853038303,-500.0,0.00010958,2]
[327148888,1715853038313,-500.0,0.00010958,2]
[327148889,1715853038323,-519.38293849,0.00010958,2]
[327148890,1715853038333,-1738.57468669,0.00010995,2]
[327148891,1715853038343,-755.64625634,0.00010995,2]
[327148892,1715853038353,-750.94633531,0.00011,2]
[327148893,1715853038363,-1564.1179518,0.00011008,2]
[327148894,1715853038373,-513.77927994,0.0001107,2]
[327148895,1715853038388,-513.77927994,0.0001107,2]
[327148896,1715853038398,-513.77927994,0.0001107,2]
[327148897,1715853038408,-317.76658565,0.00011078,2]
[327148898,1715853038417,-441.68283259,0.00011078,2]
[327148899,1715853038426,-150.0,0.00011079,2]
[327148900,1715853038440,-150.0,0.00011079,2]
[327148901,1715853038449,-150.0,0.00011079,2]
[327148902,1715853038459,-150.0,0.00011079,2]
[327148903,1715853038469,-150.0,0.00011079,2]
[327148904,1715853038479,-150.0,0.00011079,2]
[327148906,1715853038488,-150.0,0.00011079,2]
[327148908,1715853038498,-234145.69223665,0.0001108,2]
[327148913,1715853038557,-393.9,0.0001108,2]
[327148916,1715853038580,-1192.33623907,0.0001108,2]
[327148918,1715853038592,-6429.90132334,0.0001108,2]
[327148920,1715853038604,-16429.28753765,0.0001108,2]
[327148923,1715853038624,-500.0,0.00010958,2]
[327148924,1715853038634,-3074.0462442,0.0001108,2]
[327148926,1715853038647,-599.68535818,0.0001108,2]
[327148928,1715853038659,-8038.61441017,0.0001108,2]
[327148930,1715853038670,-639298.73566618,0.0001108,2]
[327148933,1715853038689,-1629.76586371,0.0001108,2]
[327148935,1715853038701,-2288.564954,0.0001108,2]
[327148937,1715853038712,-2596.08048655,0.0001108,2]
[327148959,1715853039316,-820.99723027,0.0001108,2]
[327148960,1715853039332,-31090.26631584,0.0001108,2]
[327148961,1715853039347,-6775.96856293,0.0001108,2]
[327148962,1715853039359,-7103.53077201,0.0001108,2]
[327148963,1715853039372,-3119.6325,0.0001108,2]
[327148964,1715853039385,-445759.38718761,0.0001108,2]
[327148965,1715853039395,-37762.62102207,0.0001108,2]
[327148966,1715853039406,-14234.99887379,0.0001108,2]
[327148967,1715853039417,-1614.2,0.0001108,2]
[327148968,1715853039434,-250.88068151,0.0001108,2]
[327148971,1715853039761,-5019.67019031,0.0001108,2]
[327148973,1715853039773,-486.71674462,0.0001108,2]
[327148974,1715853039785,-3239.71161728,0.0001108,2]
[327148975,1715853039796,-835.05897205,0.0001108,2]
[327148976,1715853039809,-11590.4789,0.0001108,2]
[327148977,1715853039820,-6550.58244479,0.0001108,2]
[327148978,1715853039922,-579.45888,0.0001108,2]
[327148979,1715853039934,-20246.45899222,0.0001108,2]
[327148980,1715853039946,-880.188012,0.0001108,2]
[327148981,1715853039958,-512.0,0.0001108,2]
[327148982,1715853039969,-29871.07621731,0.0001108,2]
[327148983,1715853039982,-374.56443819,0.0001108,2]
[327148984,1715853039994,-263.66000001,0.0001108,2]
[327148985,1715853040006,-1504.18499997,0.0001108,2]
[327148986,1715853040018,-523.392,0.0001108,2]
[327148987,1715853040030,-455.34,0.0001108,2]
[327148988,1715853040085,-1007.59137853,0.0001108,2]
[327148989,1715853040239,-10982.71340834,0.0001108,2]
[327148991,1715853041917,150.01,8.272e-05,2]
[327149026,1715853042799,-316890.29576478,0.0001108,2]
[327149027,1715853042811,-978046.49062426,0.0001108,2]
[327149029,1715853042823,-856.96123763,0.0001108,2]
[327149031,1715853042834,-16598.25,0.0001108,2]
[327149032,1715853042904,-3137.60000995,0.0001108,2]
[327149033,1715853043008,-53980.64186695,0.0001108,2]
[327149034,1715853043113,-7407.44821761,0.0001108,2]
[327149035,1715853043124,-4043.23692891,0.0001108,2]
[327149036,1715853043136,-579.35,0.0001108,2]
[327149081,1715853047315,-500.0,0.00010958,2]
[327149082,1715853047324,-304.60349248,0.00010995,2]
[327149083,1715853047438,-337.08969517,0.00010995,2]
[327149084,1715853047449,-719.95798759,0.00010995,2]
[327149085,1715853047461,-1667.29946071,0.00010995,2]
[327149086,1715853047469,-237.20973575,0.00011079,2]
[327149087,1715853047479,-257184.87485291,0.0001108,2]
[327149088,1715853049606,217.67927478,8.219e-05,2]
[327149089,1715853049696,173.41818925,8.219e-05,2]
[327149092,1715853085952,174701.51335647,8.219e-05,2]
[327149095,1715853202681,151.03,8.219e-05,2]
[327149099,1715853760339,151.03,8.219e-05,2]
[327149103,1715854224825,151.03,8.219e-05,2]
[327149117,1715854232804,-321.45265509,8.744e-05,2]
[327149118,1715854232814,-217.29472164,8.745e-05,2]
[327149119,1715854232823,-377.89293188,8.745e-05,2]
[327149120,1715854232833,-640.0,8.746e-05,2]
[327149121,1715854232843,-8.37179638,8.765e-05,2]
[327149122,1715854232855,-146.62820362,8.765e-05,2]
[327149123,1715854232864,-1871.06146877,8.766e-05,2]
[327149124,1715854232880,-1217.81980586,8.766e-05,2]
[327149125,1715854232891,-2156.63659479,8.767e-05,2]
[327149126,1715854232901,-150.0,8.77e-05,2]
[327149127,1715854232910,-150.0,8.77e-05,2]
[327149128,1715854232920,-754.52,8.772e-05,2]
[327149129,1715854232930,-200.3,8.781e-05,2]
[327149130,1715854232939,-154.87,8.797e-05,2]
[327149131,1715854232948,-250.0,8.807e-05,2]
[327149132,1715854232958,-23900.0,8.809e-05,2]
[327149133,1715854232968,-971.37,8.829e-05,2]
[327149134,1715854232977,-250.0,8.915e-05,2]
[327149135,1715854232987,-360.0,8.953e-05,2]
[327149136,1715854232997,-154.87,9.026e-05,2]
[327149137,1715854233007,-173.0,9.047e-05,2]
[327149138,1715854233016,-415.26,9.178e-05,2]
[327149140,1715854233026,-869.11,9.178e-05,2]
[327149142,1715854233036,-154.87,9.255e-05,2]
[327149144,1715854233045,-869.11,9.341e-05,2]
[327149145,1715854233055,-443.11,9.341e-05,2]
[327149147,1715854233065,-2525.83,9.542e-05,2]
[327149148,1715854233074,-2525.83,9.545e-05,2]
[327149150,1715854233084,-2525.83,9.547e-05,2]
[327149153,1715854233093,-2525.83,9.55e-05,2]
[327149156,1715854233103,-2525.83,9.552e-05,2]
[327149157,1715854233112,-2525.83,9.555e-05,2]
[327149158,1715854233121,-2525.83,9.557e-05,2]
[327149159,1715854233130,-2525.83,9.56e-05,2]
[327149160,1715854233140,-2525.83,9.562e-05,2]
[327149161,1715854233149,-2525.83,9.565e-05,2]
[327149162,1715854233158,-2525.83,9.567e-05,2]
[327149163,1715854233167,-2525.83,9.57e-05,2]
[327149164,1715854233177,-2525.83,9.572e-05,2]
[327149165,1715854233186,-288.87973572,9.574e-05,2]
[327149166,1715854233195,-2525.83,9.575e-05,2]
[327149167,1715854233206,-2525.83,9.577e-05,2]
[327149168,1715854233215,-2525.83,9.58e-05,2]
[327149169,1715854233224,-2525.83,9.582e-05,2]
[327149170,1715854233234,-2525.83,9.585e-05,2]
[327149171,1715854233243,-2525.83,9.587e-05,2]
[327149172,1715854233252,-2525.83,9.59e-05,2]
[327149173,1715854233262,-415.26,9.641e-05,2]
[327149174,1715854233271,-869.11,9.641e-05,2]
[327149175,1715854233280,-299.99,9.67e-05,2]
[327149176,1715854233290,-499.99,9.67e-05,2]
[327149177,1715854233299,-488.15,9.726e-05,2]
[327149178,1715854233309,-420.48,9.726e-05,2]
[327149179,1715854233318,-523.71,9.726e-05,2]
[327149180,1715854233328,-204.21,9.726e-05,2]
[327149181,1715854233337,-420.48,9.726e-05,2]
[327149182,1715854233348,-351.59,9.726e-05,2]
[327149183,1715854233357,-523.71,9.726e-05,2]
[327149184,1715854233367,-523.71,9.778e-05,2]
[327149185,1715854233376,-420.48,9.778e-05,2]
[327149186,1715854233386,-351.59,9.778e-05,2]
[327149187,1715854233395,-640.0,9.839e-05,2]
[327149188,1715854233404,-200.3,9.879e-05,2]
[327149189,1715854233414,-285.90804803,9.97e-05,2]
[327149190,1715854233424,-156.90148724,9.97e-05,2]
[327149191,1715854233433,-789.2922901,0.0001,2]
[327149192,1715854233442,-360.0,0.00010072,2]
[327149193,1715854233451,-415.26,0.00010137,2]
[327149194,1715854233461,-869.11,0.00010137,2]
[327149195,1715854233470,-869.11,0.00010137,2]
[327149196,1715854233479,-869.11,0.00010137,2]
[327149197,1715854233488,-869.11,0.00010137,2]
[327149198,1715854233497,-869.11,0.00010137,2]
[327149199,1715854233506,-869.11,0.00010137,2]
[327149200,1715854233516,-869.11,0.00010137,2]
[327149201,1715854233525,-866.1,0.00010137,2]
[327149202,1715854233535,-1667.52707944,0.00010172,2]
[327149203,1715854233545,-1667.52707944,0.00010172,2]
[327149204,1715854233554,-600.0,0.00010506,2]
[327149205,1715854233564,-182.93157257,0.00010524,2]
[327149206,1715854233573,-420.48,0.00010548,2]
[327149207,1715854233583,-351.59,0.00010548,2]
[327149208,1715854233591,-523.63,0.00010548,2]
[327149209,1715854233600,-420.48,0.00010548,2]
[327149210,1715854233610,-420.28,0.00010548,2]
[327149211,1715854233624,-1564.1179518,0.00010722,2]
[327149212,1715854233633,-150.0,0.00010822,2]
[327149213,1715854233642,-150.0,0.00010822,2]
[327149214,1715854233651,-150.0,0.00010822,2]
[327149215,1715854233660,-10000.0,0.00010858,2]
[327149216,1715854233670,-432.2412,0.00010858,2]
[327149217,1715854233679,-1000.0,0.00010858,2]
[327149218,1715854233690,-640.0,0.00010932,2]
[327149219,1715854233703,-1060.4997,0.0001095,2]
[327149220,1715854233713,-1076.1097,0.0001095,2]
[327149221,1715854233722,-21026.5767,0.0001095,2]
[327149222,1715854233731,-351.97,0.00010958,2]
[327149223,1715854233740,-500.0,0.00010958,2]
[327149224,1715854233750,-500.0,0.00010958,2]
[327149225,1715854233759,-509.02062877,0.00010958,2]
[327149226,1715854233768,-500.0,0.00010958,2]
[327149227,1715854233778,-500.0,0.00010958,2]
[327149228,1715854233787,-169.27290093,0.00010958,2]
[327149229,1715854233797,-646.02,0.00010958,2]
[327149230,1715854233806,-500.0,0.00010958,2]
[327149231,1715854233815,-500.0,0.00010958,2]
[327149232,1715854233824,-500.0,0.00010958,2]
[327149233,1715854233834,-500.0,0.00010958,2]
[327149234,1715854233844,-520.35660028,0.00010958,2]
[327149235,1715854233853,-500.0,0.00010958,2]
[327149236,1715854233863,-500.0,0.00010958,2]
[327149237,1715854233873,-506.74611959,0.00010958,2]
[327149238,1715854233882,-500.0,0.00010958,2]
[327149239,1715854233892,-577.02973015,0.00010958,2]
[327149240,1715854233902,-500.0,0.00010958,2]
[327149241,1715854233911,-176.0,0.00010958,2]
[327149242,1715854233920,-500.0,0.00010958,2]
[327149243,1715854233930,-500.0,0.00010958,2]
[327149244,1715854233939,-500.0,0.00010958,2]
[327149245,1715854233949,-500.0,0.00010958,2]
[327149246,1715854233958,-500.0,0.00010958,2]
[327149247,1715854233968,-500.0,0.00010958,2]
[327149248,1715854233977,-548.4,0.00010958,2]
[327149249,1715854233986,-500.0,0.00010958,2]
[327149250,1715854233995,-500.0,0.00010958,2]
[327149251,1715854234005,-500.0,0.00010958,2]
[327149252,1715854234014,-500.0,0.00010958,2]
[327149253,1715854234025,-500.0,0.00010958,2]
[327149254,1715854234034,-500.0,0.00010958,2]
[327149255,1715854234043,-500.0,0.00010958,2]
[327149256,1715854234053,-500.0,0.00010958,2]
[327149257,1715854234062,-500.0,0.00010958,2]
[327149258,1715854234073,-500.0,0.00010958,2]
[327149259,1715854234083,-392.96223821,0.00010958,2]
[327149260,1715854234092,-247.84,0.00010958,2]
[327149261,1715854234101,-500.0,0.00010958,2]
[327149262,1715854234110,-500.0,0.00010958,2]
[327149263,1715854234119,-500.0,0.00010958,2]
[327149264,1715854234128,-500.0,0.00010958,2]
[327149265,1715854234138,-500.0,0.00010958,2]
[327149266,1715854234147,-500.0,0.00010958,2]
[327149267,1715854234157,-472.79929521,0.00010958,2]
[327149268,1715854234167,-479.32,0.00010958,2]
[327149269,1715854234177,-500.0,0.00010958,2]
[327149270,1715854234186,-500.0,0.00010958,2]
[327149271,1715854234196,-487.63514336,0.00010958,2]
[327149272,1715854234205,-500.0,0.00010958,2]
[327149273,1715854234214,-500.0,0.00010958,2]
[327149274,1715854234223,-500.0,0.00010958,2]
[327149275,1715854234233,-551.53686498,0.00010958,2]
[327149276,1715854234242,-500.0,0.00010958,2]
[327149277,1715854234251,-500.0,0.00010958,2]
[327149278,1715854234260,-500.0,0.00010958,2]
[327149279,1715854234270,-500.0,0.00010958,2]
[327149280,1715854234279,-182.93932225,0.00010958,2]
[327149281,1715854234288,-500.0,0.00010958,2]
[327149282,1715854234298,-246.23206277,0.00010958,2]
[327149283,1715854234307,-500.0,0.00010958,2]
[327149284,1715854234316,-500.0,0.00010958,2]
[327149285,1715854234325,-500.0,0.00010958,2]
[327149286,1715854234336,-530.23174782,0.00010958,2]
[327149287,1715854234346,-500.0,0.00010958,2]
[327149288,1715854234355,-500.0,0.00010958,2]
[327149289,1715854234365,-374.63928511,0.00010958,2]
[327149290,1715854234374,-500.0,0.00010958,2]
[327149291,1715854234383,-559.22688288,0.00010958,2]
[327149292,1715854234394,-500.0,0.00010958,2]
[327149293,1715854234403,-500.0,0.00010958,2]
[327149294,1715854234413,-577.11,0.00010958,2]
[327149295,1715854234422,-506.82348586,0.00010958,2]
[327149296,1715854234432,-500.0,0.00010958,2]
[327149297,1715854234442,-211.82,0.00010958,2]
[327149298,1715854234451,-500.0,0.00010958,2]
[327149299,1715854234460,-500.0,0.00010958,2]
[327149300,1715854234470,-432.02319694,0.00010958,2]
[327149301,1715854234479,-500.0,0.00010958,2]
[327149302,1715854234488,-500.0,0.00010958,2]
[327149303,1715854234497,-256.05249042,0.00010958,2]
[327149304,1715854234506,-500.0,0.00010958,2]
[327149305,1715854234515,-548.76,0.00010958,2]
[327149306,1715854234525,-500.0,0.00010958,2]
[327149307,1715854234534,-500.0,0.00010958,2]
[327149308,1715854234543,-500.0,0.00010958,2]
[327149309,1715854234553,-237.61,0.00010958,2]
[327149310,1715854234562,-625.56255127,0.00010958,2]
[327149311,1715854234572,-500.0,0.00010958,2]
[327149312,1715854234581,-500.0,0.00010958,2]
[327149313,1715854234591,-500.0,0.00010958,2]
[327149314,1715854234600,-500.0,0.00010958,2]
[327149315,1715854234609,-500.0,0.00010958,2]
[327149316,1715854234622,-500.0,0.00010958,2]
[327149317,1715854234631,-527.96,0.00010958,2]
[327149318,1715854234640,-500.0,0.00010958,2]
[327149319,1715854234649,-500.0,0.00010958,2]
[327149320,1715854234660,-500.0,0.00010958,2]
[327149321,1715854234671,-600.49,0.00010958,2]
[327149322,1715854234681,-500.0,0.00010958,2]
[327149323,1715854234692,-500.0,0.00010958,2]
[327149324,1715854234701,-500.0,0.00010958,2]
[327149325,1715854234710,-500.0,0.00010958,2]
[327149326,1715854234720,-221.42,0.00010958,2]
[327149327,1715854234729,-500.0,0.00010958,2]
[327149328,1715854234738,-484.82,0.00010958,2]
[327149329,1715854234748,-500.0,0.00010958,2]
[327149330,1715854234757,-1572.54,0.00010958,2]
[327149331,1715854234766,-500.0,0.00010958,2]
[327149332,1715854234775,-500.0,0.00010958,2]
[327149333,1715854234785,-500.0,0.00010958,2]
[327149334,1715854234794,-500.0,0.00010958,2]
[327149335,1715854235013,-500.0,0.00010958,2]
[327149336,1715854235023,-500.0,0.00010958,2]
[327149337,1715854235033,-500.0,0.00010958,2]
[327149338,1715854235042,-500.0,0.00010958,2]
[327149339,1715854235051,-500.0,0.00010958,2]
[327149340,1715854235060,-500.0,0.00010958,2]
[327149341,1715854235070,-500.0,0.00010958,2]
[327149342,1715854235079,-500.0,0.00010958,2]
[327149343,1715854235088,-500.0,0.00010958,2]
[327149344,1715854235097,-500.0,0.00010958,2]
[327149345,1715854235107,-384.87,0.00010958,2]
[327149346,1715854235117,-500.0,0.00010958,2]
[327149347,1715854235128,-500.0,0.00010958,2]
[327149348,1715854235138,-634.06,0.00010958,2]
[327149349,1715854235147,-500.0,0.00010958,2]
[327149350,1715854235157,-500.0,0.00010958,2]
[327149351,1715854235167,-150.0,0.00010959,2]
[327149352,1715854235178,-899.15,0.00010959,2]
[327149353,1715854235187,-8255.75,0.00010959,2]
[327149354,1715854235196,-236.34,0.00010959,2]
[327149355,1715854235205,-535.68,0.00010968,2]
[327149356,1715854235215,-1303.56,0.00010969,2]
[327149357,1715854235224,-25403.3282975,0.0001097,2]
[327149358,1715854235234,-200.3,0.00010976,2]
[327149359,1715854235243,-158.89129434,0.00010977,2]
[327149360,1715854235252,-431.6697236,0.00010978,2]
[327149361,1715854235261,-175.50655605,0.00010978,2]
[327149362,1715854235270,-500.0,0.00010978,2]
[327149363,1715854235281,-500.0,0.00010978,2]
[327149364,1715854235290,-500.0,0.00010978,2]
[327149365,1715854235299,-500.0,0.00010978,2]
[327149366,1715854235308,-500.0,0.00010978,2]
[327149367,1715854235317,-166.95214797,0.00010978,2]
[327149368,1715854235327,-500.0,0.00010978,2]
[327149369,1715854235337,-500.0,0.00010978,2]
[327149370,1715854235347,-500.0,0.00010978,2]
[327149371,1715854235356,-500.0,0.00010978,2]
[327149372,1715854235365,-500.0,0.00010978,2]
[327149373,1715854235374,-500.0,0.00010978,2]
[327149374,1715854235384,-500.0,0.00010978,2]
[327149375,1715854235393,-483.76,0.00010978,2]
[327149376,1715854235403,-500.0,0.00010978,2]
[327149377,1715854235412,-500.0,0.00010978,2]
[327149378,1715854235421,-500.0,0.00010978,2]
[327149379,1715854235433,-2394.86,0.00010978,2]
[327149380,1715854235442,-500.0,0.00010978,2]
[327149381,1715854235451,-500.0,0.00010978,2]
[327149382,1715854235460,-23099.29981616,0.00010979,2]
[327149383,1715854235470,-185.95138287,0.00010979,2]
[327149384,1715854235479,-158.89129434,0.0001098,2]
[327149385,1715854235488,-163.73128411,0.0001098,2]
[327149386,1715854235498,-2019.30042398,0.0001098,2]
[327149387,1715854235506,-503.7641709,0.0001098,2]
[327149388,1715854235515,-750.94633531,0.00011,2]
[327149389,1715854235525,-200.59740565,0.00011,2]
[327149390,1715854235534,-500.0,0.00011049,2]
[327149391,1715854235543,-500.0,0.00011049,2]
[327149392,1715854235553,-435.22,0.00011055,2]
[327149393,1715854235562,-500.0,0.00011055,2]
[327149394,1715854235571,-307.89337315,0.00011055,2]
[327149395,1715854235580,-500.0,0.00011055,2]
[327149396,1715854235590,-500.0,0.00011055,2]
[327149397,1715854235600,-539.63258044,0.00011055,2]
[327149398,1715854235610,-500.0,0.00011055,2]
[327149399,1715854235624,-187.51178374,0.00011055,2]
[327149400,1715854235633,-199.45,0.00011055,2]
[327149401,1715854235642,-500.0,0.00011055,2]
[327149402,1715854235652,-500.0,0.00011055,2]
[327149403,1715854235662,-500.0,0.00011055,2]
[327149404,1715854235671,-500.0,0.00011055,2]
[327149405,1715854235682,-500.0,0.00011055,2]
[327149406,1715854235692,-418.82167226,0.00011055,2]
[327149407,1715854235702,-500.0,0.00011055,2]
[327149408,1715854235711,-500.0,0.00011055,2]
[327149409,1715854235721,-500.0,0.00011055,2]
[327149410,1715854235730,-500.0,0.00011055,2]
[327149411,1715854235740,-500.0,0.00011055,2]
[327149412,1715854235749,-500.0,0.00011055,2]
[327149413,1715854235759,-500.0,0.00011055,2]
[327149414,1715854235768,-500.0,0.00011055,2]
[327149415,1715854235777,-500.0,0.00011055,2]
[327149416,1715854235787,-500.0,0.00011055,2]
[327149417,1715854235797,-500.0,0.00011055,2]
[327149418,1715854235806,-500.0,0.00011055,2]
[327149419,1715854235816,-190.06228737,0.00011055,2]
[327149420,1715854235825,-500.0,0.00011055,2]
[327149421,1715854235834,-500.0,0.00011055,2]
[327149422,1715854235844,-500.0,0.00011055,2]
[327149423,1715854235853,-500.0,0.00011055,2]
[327149424,1715854235863,-500.0,0.00011055,2]
[327149425,1715854235872,-500.0,0.00011055,2]
[327149426,1715854235882,-500.0,0.00011055,2]
[327149427,1715854235891,-500.0,0.00011055,2]
[327149428,1715854235900,-500.0,0.00011055,2]
[327149429,1715854235910,-500.0,0.00011055,2]
[327149430,1715854235920,-500.0,0.00011055,2]
[327149431,1715854235930,-512.76,0.00011055,2]
[327149432,1715854235939,-500.0,0.00011055,2]
[327149433,1715854235949,-500.0,0.00011055,2]
[327149434,1715854235958,-500.0,0.00011055,2]
[327149435,1715854235967,-500.0,0.00011055,2]
[327149436,1715854235977,-500.0,0.00011055,2]
[327149437,1715854235986,-500.0,0.00011055,2]
[327149438,1715854235995,-500.0,0.00011055,2]
[327149439,1715854236004,-500.0,0.00011055,2]
[327149440,1715854236013,-500.0,0.00011055,2]
[327149441,1715854236021,-552.36,0.00011055,2]
[327149442,1715854236030,-500.0,0.00011055,2]
[327149443,1715854236039,-500.0,0.00011055,2]
[327149444,1715854236048,-541.8,0.00011055,2]
[327149445,1715854236058,-500.0,0.00011055,2]
[327149446,1715854236066,-500.0,0.00011055,2]
[327149447,1715854236074,-500.0,0.00011055,2]
[327149448,1715854236083,-500.0,0.00011055,2]
[327149449,1715854236092,-500.0,0.00011055,2]
[327149450,1715854236101,-556.2254731,0.00011055,2]
[327149451,1715854236109,-500.0,0.00011055,2]
[327149452,1715854236119,-500.0,0.00011055,2]
[327149453,1715854236128,-500.0,0.00011055,2]
[327149454,1715854236138,-500.0,0.00011055,2]
[327149455,1715854236147,-500.0,0.00011055,2]
[327149456,1715854236156,-500.0,0.00011055,2]
[327149457,1715854236165,-500.0,0.00011055,2]
[327149458,1715854236174,-500.0,0.00011055,2]
[327149459,1715854236183,-500.0,0.00011055,2]
[327149460,1715854236192,-500.0,0.00011055,2]
[327149461,1715854236201,-3145.50093514,0.00011056,2]
[327149462,1715854236210,-535.68,0.00011067,2]
[327149463,1715854236219,-503296.83367796,0.00011068,2]